bitfinex/quotes_ETHUSD_20251120
["timestamp","ask_amount","ask_price","bid_price","bid_amount"]
[1763598906324,0.002,3043.3,3042.4,6.96842542]
[1763598906616,0.002,3043.3,3043.2,0.0498]
[1763598907670,0.002,3043.3,3043.2,3.38561472]
[1763598908318,0.002,3043.3,3043.2,0.0996]
[1763598909544,0.002,3043.7,3043.3,0.90699264]
[1763598909748,0.002,3043.7,3043.6,0.0498]
[1763598910098,0.002,3043.7,3043.6,0.0996]
[1763598911712,0.002,3043.7,3043.6,0.0498]
[1763598912117,0.002,3043.7,3043.6,1.00659264]
[1763598912501,0.002,3043.7,3043.6,0.0498]
[1763598912703,0.002,3043.7,3043.6,0.551537]
[1763598913231,0.002,3043.7,3043.6,0.0498]
[1763598914003,0.002,3043.7,3043.0,4.19314582]
[1763598914212,0.002,3043.7,3043.2,0.112]
[1763598914644,0.002,3043.7,3043.2,0.1618]
[1763598915303,0.002,3043.7,3043.6,0.0498]
[1763598915736,0.002,3043.7,3043.6,0.0996]
[1763598917741,0.002,3043.7,3043.6,0.0498]
[1763598918150,0.002,3043.7,3043.6,3.71873833]
[1763598919540,0.002,3043.7,3043.6,3.83073833]
[1763598919846,0.002,3043.7,3043.6,3.86359415]
[1763598920043,0.002,3043.7,3043.6,5.27609079]
[1763598920266,0.002,3043.7,3043.6,5.4076587]
[1763598921373,1e-08,3043.8,3043.7,1.51209664]
[1763598921572,1e-08,3043.8,3043.7,2.45781843]
[1763598922383,1e-08,3043.8,3043.7,5.74329334]
[1763598922545,1e-08,3043.8,3043.7,5.33833742]
[1763598922741,1e-08,3043.8,3043.7,8.83619216]
[1763598922983,1e-08,3043.8,3043.7,8.80333742]
[1763598923180,1e-08,3043.8,3043.7,9.20829334]
[1763598923478,0.002,3045.3,3044.0,0.555304]
[1763598923678,0.002,3045.3,3044.4,4.92729664]
[1763598923852,0.002,3045.3,3044.4,5.31257451]
[1763598924077,0.002,3045.3,3044.4,5.36237451]
[1763598924276,0.002,3045.3,3044.4,8.64709399]
[1763598924693,0.002,3045.3,3044.8,3.970504]
[1763598924895,0.1949,3047.2,3044.5,0.95679264]
[1763598924896,0.4624,3048.1,3046.3,0.1]
[1763598925224,1.18179508,3048.9,3045.5,0.40495592]
[1763598925225,0.0328765,3047.6,3045.5,0.40495592]
[1763598925501,7.94750365,3047.4,3045.7,0.92051964]
[1763598925702,0.79475037,3047.3,3045.7,0.92051964]
[1763598925907,0.4624,3047.6,3046.1,0.1]
[1763598926077,0.4624,3047.5,3046.2,0.112]
[1763598926479,0.0328765,3047.4,3046.2,0.112]
[1763598926680,3.74379203,3047.5,3046.2,3.39476231]
[1763598926879,0.94497847,3047.4,3046.3,0.405504]
[1763598927211,0.4799,3047.4,3046.3,0.405504]
[1763598927508,0.4799,3047.3,3046.3,0.405504]
[1763598927735,4.18827846,3047.6,3046.3,0.405504]
[1763598927736,0.4799,3047.6,3046.5,0.1]
[1763598928004,0.4799,3047.6,3046.4,0.0498]
[1763598928005,0.5127765,3047.5,3046.4,0.0498]
[1763598928173,0.5127765,3047.5,3046.3,0.90699264]
[1763598928174,0.4799,3047.5,3046.3,0.90699264]
[1763598928375,0.4799,3047.5,3046.5,0.90699264]
[1763598929003,0.4799,3047.5,3046.5,1.00699264]
[1763598929193,0.4799,3047.9,3046.6,0.455304]
[1763598929384,0.4799,3047.9,3046.8,0.1]
[1763598929591,0.4799,3047.9,3046.9,0.405504]
[1763598929794,0.1949,3048.0,3046.9,0.455304]
[1763598929997,0.1949,3048.0,3047.1,0.1]
[1763598930176,0.1949,3048.0,3047.2,0.112]
[1763598930375,0.1949,3048.0,3047.3,3.28159354]
[1763598930579,0.6748,3048.0,3047.3,3.28159354]
[1763598931309,3.27999051,3048.8,3047.5,0.405504]
[1763598931310,0.4799,3048.8,3047.5,0.405504]
[1763598931613,0.4799,3048.7,3047.9,0.0498]
[1763598931775,0.4799,3048.7,3047.5,0.405504]
[1763598931977,0.6717,3047.6,3046.7,0.1]
[1763598932286,0.4825,3047.5,3046.8,0.517504]
[1763598932474,0.4825,3047.5,3046.9,1.01899264]
[1763598932887,0.9624,3047.5,3046.9,1.01899264]
[1763598933107,0.9624,3047.5,3046.4,3.38256302]
[1763598933296,0.4825,3047.5,3046.5,0.50931289]
[1763598933614,0.4825,3047.5,3046.6,0.405504]
[1763598933910,0.1892,3047.9,3046.6,0.455304]
[1763598934213,0.4799,3047.8,3046.6,0.405504]
[1763598934588,0.4799,3047.8,3046.8,1.31249664]
[1763598934789,0.4799,3047.8,3046.8,2.11517426]
[1763598935116,0.4799,3048.2,3047.0,0.405504]
[1763598935319,0.4799,3048.2,3047.1,0.212]
[1763598935728,0.4799,3048.2,3047.2,0.405504]
[1763598936088,0.0328765,3048.6,3047.2,0.405504]
[1763598936440,0.5127765,3048.9,3047.5,0.405504]
[1763598936586,0.5127765,3048.9,3047.6,3.3932705]
[1763598936587,1.30631348,3048.8,3047.6,3.3932705]
[1763598936786,1.30631348,3048.8,3046.8,0.80267762]
[1763598936787,0.0328765,3048.7,3047.7,0.112]
[1763598937041,0.4799,3048.7,3047.7,0.112]
[1763598937508,0.39932084,3048.8,3047.7,0.112]
[1763598937712,0.87922084,3048.8,3047.7,0.112]
[1763598938034,0.17862135,3048.7,3047.7,0.112]
[1763598938191,0.64102135,3048.7,3047.7,0.112]
[1763598938393,0.4624,3048.7,3047.7,0.112]
[1763598938588,0.39932084,3048.8,3047.2,0.405504]
[1763598938589,0.39932084,3048.8,3047.9,0.90699264]
[1763598938825,0.4624,3048.7,3047.9,0.112]
[1763598939049,0.002,3048.2,3047.9,0.112]
[1763598939587,0.4644,3048.2,3047.9,0.112]
[1763598939793,0.4853,3048.0,3047.6,0.95679264]
[1763598940100,0.002,3048.2,3047.6,4.2380426]
[1763598940622,0.4624,3048.1,3047.5,4.18836512]
[1763598940799,0.4624,3048.1,3047.4,3.39348353]
[1763598940999,0.4624,3048.1,3047.5,0.90699264]
[1763598941902,0.4624,3048.1,3047.4,3.39348353]
[1763598943335,0.4624,3048.1,3047.4,6.67496938]
[1763598943633,0.002,3048.2,3047.4,3.85040512]
[1763598943832,0.4624,3048.1,3047.4,6.67496938]
[1763598944202,0.4624,3048.1,3047.4,0.112]
[1763598944399,0.0328765,3048.0,3047.4,0.112]
[1763598944623,0.6619,3047.9,3047.4,0.112]
[1763598944941,0.6619,3047.9,3047.4,4.30041506]
[1763598945124,0.4624,3047.8,3047.4,4.30041506]
[1763598945519,0.1995,3047.9,3047.4,7.58190091]
[1763598945832,0.1995,3048.1,3047.4,8.340091]
[1763598946030,0.1995,3048.1,3047.5,0.405504]
[1763598946198,0.4624,3048.0,3047.5,0.405504]
[1763598948032,0.4624,3048.0,3047.4,0.112]
[1763598948220,0.4853,3047.6,3047.4,0.112]
[1763598948729,0.4853,3047.5,3047.4,0.112]
[1763598948935,0.4853,3047.5,3047.1,0.90699264]
[1763598949131,0.9477,3047.5,3047.1,0.90699264]
[1763598949436,0.4853,3047.5,3047.2,0.405504]
[1763598949649,0.4624,3047.9,3047.2,0.405504]
[1763598949948,0.4624,3047.9,3047.1,0.405504]
[1763598950311,0.4624,3047.9,3047.1,1.31249664]
[1763598951428,0.30589085,3048.0,3047.1,1.41249664]
[1763598952028,0.76829085,3048.0,3047.2,3.28170123]
[1763598952230,0.76829085,3048.0,3047.3,0.405504]
[1763598952428,0.30589085,3047.9,3047.3,0.405504]
[1763598953013,0.4624,3047.8,3047.3,0.405504]
[1763598953258,0.4853,3047.4,3047.1,0.405504]
[1763598954314,0.4853,3047.4,3047.1,3.68721308]
[1763598954766,0.87201203,3047.9,3043.5,3.28662441]
[1763598954767,0.4853,3047.2,3046.3,0.0498]
[1763598954944,0.79234201,3047.1,3046.5,0.112]
[1763598955256,0.30704201,3047.0,3046.5,0.112]
[1763598955460,0.19623733,3047.0,3046.6,0.405504]
[1763598955660,0.1995,3046.9,3046.6,0.405504]
[1763598956161,0.6619,3046.9,3046.6,0.405504]
[1763598956367,0.6619,3046.9,3046.6,3.68778372]
[1763598956542,0.87201203,3047.5,3046.9,0.405504]
[1763598956725,1.64419508,3047.7,3047.0,0.0498]
[1763598956726,1.01484606,3047.4,3047.0,0.0498]
[1763598956920,0.30714168,3047.3,3047.0,0.0498]
[1763598957123,0.87201203,3048.0,3047.2,0.405504]
[1763598957426,1.01469395,3047.9,3047.3,0.112]
[1763598957613,1.01469395,3047.8,3047.4,0.405504]
[1763598957823,0.30708627,3047.7,3047.4,0.405504]
[1763598958023,0.70960768,3047.9,3047.4,0.405504]
[1763598958223,0.70960768,3047.9,3047.3,0.212]
[1763598958224,0.30717913,3047.8,3047.7,0.405504]
[1763598958455,0.002,3047.9,3047.7,6.96782968]
[1763598958656,0.002,3047.9,3047.8,1.47429664]
[1763598959222,0.002,3047.9,3047.8,1.62409664]
[1763598959424,0.002,3047.9,3047.8,1.47429664]
[1763598959861,0.002,3047.9,3047.8,1.62409664]
[1763598960374,0.002,3047.9,3047.8,4.90515182]
[1763598962294,0.002,3047.9,3047.8,4.79315182]
[1763598962507,0.002,3047.9,3047.8,4.90515182]
[1763598962788,0.002,3047.9,3047.8,3.39305518]
[1763598963284,1.1492,3047.9,3047.8,0.112]
[1763598963579,1.1492,3047.9,3046.4,3.28256302]
[1763598963580,1.45603365,3047.9,3046.4,3.28256302]
[1763598963745,0.4853,3047.5,3046.5,0.112]
[1763598964156,0.9477,3047.5,3046.5,0.112]
[1763598964575,0.4624,3047.4,3046.6,0.90699264]
[1763598964775,0.76929703,3047.4,3046.5,6.6768869]
[1763598965160,0.4624,3047.3,3046.6,0.90699264]
[1763598965375,0.4624,3047.3,3046.7,0.03282239]
[1763598965579,0.4624,3047.3,3046.6,0.90699264]
[1763598966390,0.4624,3047.3,3046.8,0.90699264]
[1763598966603,0.4624,3047.3,3046.9,0.405504]
[1763598967095,0.30681472,3047.7,3046.9,0.405504]
[1763598967412,0.4624,3047.3,3046.9,0.405504]
[1763598968505,0.4861,3047.0,3046.9,0.112]
[1763598968873,0.9564,3047.0,3046.9,0.112]
[1763598969377,0.3135,3047.9,3047.0,0.405504]
[1763598969378,0.2015,3047.9,3047.0,0.405504]
[1763598969898,0.6718,3047.9,3047.0,0.405504]
[1763598970407,0.2015,3047.9,3047.2,1.31249664]
[1763598970611,0.002,3047.9,3047.4,0.405504]
[1763598971087,0.002,3047.9,3047.5,0.1]
[1763598971293,0.002,3047.9,3047.8,0.455304]
[1763598971493,0.002,3047.9,3047.8,0.70011455]
[1763598971691,0.002,3047.9,3047.8,0.667304]
[1763598972205,0.002,3047.9,3047.8,0.64991455]
[1763598972406,0.002,3048.6,3047.8,0.64991455]
[1763598972407,0.002,3048.6,3048.5,3.68580578]
[1763598972604,0.002,3048.6,3048.5,5.23786655]
[1763598972780,0.002,3048.6,3048.5,5.13786655]
[1763598972999,0.002,3048.6,3048.5,5.24986655]
[1763598973194,0.002,3048.6,3048.5,5.39366655]
[1763598974322,0.002,3048.6,3048.5,5.20606655]
[1763598974486,0.002,3048.6,3048.5,4.70479842]
[1763598974684,0.002,3048.6,3048.5,4.74859842]
[1763598974905,0.002,3048.6,3048.5,4.89239842]
[1763598979390,0.002,3048.9,3048.8,0.505504]
[1763598979745,0.002,3048.9,3048.8,0.549304]
[1763598979888,0.002,3048.9,3048.8,0.661304]
[1763598980490,0.002,3048.9,3048.8,0.1558]
[1763598980764,0.002,3048.9,3048.8,3.941283]
[1763598980931,0.002,3048.9,3048.8,3.897483]
[1763598981334,0.002,3048.9,3048.8,3.797483]
[1763598981530,0.002,3048.9,3048.8,5.45603345]
[1763598981731,0.002,3048.9,3048.8,5.63263324]
[1763598982049,0.002,3048.9,3048.8,13.21153459]
[1763598982257,0.002,3048.9,3048.8,13.1787348]
[1763598982458,0.002,3048.9,3048.8,4.93852945]
[1763598982648,0.002,3048.9,3048.8,5.18332924]
[1763598982828,0.002,3048.9,3048.8,5.63263324]
[1763598983032,0.002,3048.9,3048.8,5.49983345]
[1763598983246,0.002,3048.9,3048.8,5.59983345]
[1763598984165,0.002,3048.9,3048.8,5.55603345]
[1763598984368,0.002,3048.9,3048.8,5.59983345]
[1763598985981,1e-08,3049.0,3048.9,1.50009664]
[1763598986187,1e-08,3049.0,3048.9,2.05193804]
[1763598986391,2.0,3049.7,3049.3,0.449304]
[1763598986567,0.4567,3051.2,3050.3,0.405504]
[1763598986767,0.4567,3051.2,3050.9,0.505504]
[1763598986941,0.4567,3051.2,3051.1,0.405504]
[1763598987147,0.1965,3051.3,3051.1,0.405504]
[1763598987380,0.9389,3051.2,3051.1,0.405504]
[1763598988278,0.9389,3051.2,3051.1,0.40036552]
[1763598988482,0.9389,3051.2,3051.0,0.112]
[1763598988689,0.9389,3051.1,3051.0,0.112]
[1763598989243,0.9389,3051.1,3050.6,0.112]
[1763598989469,0.1965,3051.3,3049.8,0.0438]
[1763598989470,0.4567,3051.0,3050.2,0.112]
[1763598989880,0.4822,3050.3,3049.9,0.112]
[1763598990278,0.4822,3050.0,3049.9,0.112]
[1763598990689,0.9389,3050.0,3049.9,0.112]
[1763598990889,0.9389,3050.0,3049.9,4.29778866]
[1763598991586,0.9389,3050.0,3049.9,3.39079602]
[1763598992301,0.1823,3049.6,3049.1,3.42341324]
[1763598992453,0.1823,3049.6,3049.3,0.405504]
[1763598992851,0.639,3049.6,3049.2,0.112]
[1763598993194,0.639,3049.6,3049.2,3.39152257]
[1763598993195,0.4822,3049.3,3049.2,3.39152257]
[1763598993487,0.1823,3049.6,3049.4,0.405504]
[1763598993886,0.1823,3049.9,3049.4,1.30386079]
[1763598994090,0.639,3049.9,3049.4,1.30386079]
[1763598994490,0.1823,3049.9,3049.4,1.30386079]
[1763598994805,0.4567,3050.3,3049.8,0.405504]
[1763598994956,0.4567,3050.3,3049.3,0.90699264]
[1763598994957,3.73515592,3050.3,3049.3,3.27936497]
[1763598995279,0.37351559,3050.2,3049.4,0.517504]
[1763598995492,0.83021559,3050.2,3049.4,0.517504]
[1763598995700,0.1823,3049.5,3049.4,0.517504]
[1763598995881,0.4567,3050.1,3049.4,0.517504]
[1763598996081,0.1823,3049.7,3049.4,0.617504]
[1763598996393,0.1823,3049.7,3049.4,1.52449664]
[1763598996593,0.1823,3049.9,3049.5,0.405504]
[1763598996794,0.4822,3049.5,3049.4,0.112]
[1763598997199,0.9389,3049.5,3049.1,0.112]
[1763598997393,0.4822,3049.2,3049.1,0.112]
[1763598997601,0.4822,3049.2,3048.6,3.28019418]
[1763598997772,0.4822,3048.9,3048.6,3.28019418]
[1763598997972,3.27908634,3049.7,3048.6,3.28019418]
[1763598997973,0.494,3049.6,3048.6,7.26053979]
[1763598998175,0.494,3049.6,3048.8,0.1]
[1763598998421,0.494,3049.6,3049.0,0.405504]
[1763598998916,0.494,3049.6,3049.1,6.55931258]
[1763598999123,0.1823,3049.9,3049.2,0.505504]
[1763598999415,0.1823,3049.9,3049.4,0.405504]
[1763598999615,0.6763,3049.9,3049.4,0.405504]
[1763598999968,0.494,3049.8,3049.4,0.405504]
[1763599000989,0.494,3049.8,3049.5,6.5584522]
[1763599001377,0.4732,3049.6,3049.5,3.6847301]
[1763599001576,0.4732,3049.6,3049.3,0.112]
[1763599001776,0.1823,3049.9,3048.7,6.56017318]
[1763599001777,0.4732,3049.4,3048.7,6.56017318]
[1763599001991,0.4732,3049.2,3048.7,6.67217318]
[1763599002193,0.4732,3049.2,3048.8,0.90699264]
[1763599002491,0.9672,3049.2,3048.9,0.405504]
[1763599003006,0.9672,3049.2,3049.0,4.18675649]
[1763599003007,0.494,3049.1,3049.0,4.18675649]
[1763599003211,0.9672,3049.1,3049.0,4.18675649]
[1763599003411,0.4732,3049.1,3049.0,4.18675649]
[1763599003577,0.494,3049.4,3049.0,7.46652034]
[1763599003779,0.494,3049.8,3049.1,0.517504]
[1763599004112,0.494,3049.8,3049.3,0.405504]
[1763599005093,0.494,3049.8,3049.4,3.27933363]
[1763599005293,0.494,3049.8,3049.2,3.68505273]
[1763599005486,0.494,3049.8,3049.2,3.27954873]
[1763599005683,0.4732,3049.3,3049.2,3.27954873]
[1763599006084,0.494,3049.8,3049.2,7.22621789]
[1763599006400,0.4732,3049.3,3049.2,3.27954873]
[1763599006605,0.4732,3049.3,3049.1,0.112]
[1763599006806,0.9672,3049.2,3049.1,0.112]
[1763599007678,0.9672,3049.2,3048.8,0.90699264]
[1763599007915,0.6701,3048.9,3048.7,3.28001966]
[1763599008082,0.9672,3048.8,3048.7,3.28001966]
[1763599008282,3.46109955,3049.9,3048.7,3.28001966]
[1763599008496,0.494,3049.4,3048.7,3.28001966]
[1763599008685,0.494,3049.4,3048.7,6.56010625]
[1763599009127,0.6701,3048.8,3048.7,3.28001966]
[1763599009320,0.6701,3048.8,3048.6,3.68569818]
[1763599009618,0.1969,3049.1,3048.6,6.96589236]
[1763599009923,0.0328765,3049.8,3048.6,6.96589236]
[1763599009924,0.494,3049.8,3049.2,0.405504]
[1763599010221,0.494,3049.8,3049.4,0.405504]
[1763599010419,0.494,3049.8,3049.3,0.112]
[1763599011134,0.1823,3049.9,3049.4,0.405504]
[1763599011438,0.496,3050.2,3049.6,0.405504]
[1763599012737,0.1969,3049.7,3049.6,0.405504]
[1763599012904,0.6701,3049.7,3049.5,6.5584522]
[1763599013304,0.9672,3049.6,3049.0,0.001]
[1763599013503,0.1969,3049.7,3049.2,0.90699264]
[1763599013813,0.1969,3049.7,3049.3,0.405504]
[1763599014340,0.1969,3049.7,3049.3,0.505504]
[1763599015606,0.6909,3049.9,3049.5,0.405504]
[1763599015799,0.6909,3049.9,3049.5,1.42449664]
[1763599016138,0.1969,3049.9,3049.5,1.42449664]
[1763599016327,0.494,3049.8,3049.5,1.42449664]
[1763599016652,0.002,3050.2,3049.5,2.32281303]
[1763599016944,0.494,3050.1,3049.5,1.81730903]
[1763599017658,0.494,3050.1,3049.6,6.55823714]
[1763599017821,0.002,3050.2,3049.7,0.1]
[1763599019346,0.496,3050.2,3049.8,6.55780706]
[1763599019550,0.496,3050.2,3049.9,0.112]
[1763599020323,0.002,3050.2,3050.0,0.405504]
[1763599021007,0.002,3050.2,3050.1,0.549304]
[1763599021354,0.002,3050.2,3050.1,3.82788503]
[1763599021751,0.002,3050.2,3050.1,3.72788503]
[1763599021945,0.4752,3050.2,3050.1,3.68408503]
[1763599022126,0.9692,3050.2,3049.9,0.112]
[1763599022305,0.4732,3050.0,3049.9,3.39075849]
[1763599023358,0.9672,3050.0,3049.7,3.27901105]
[1763599023660,0.9672,3050.0,3049.6,0.112]
[1763599023661,0.6701,3049.9,3049.6,0.112]
[1763599023955,0.4732,3049.7,3049.6,3.391116]
[1763599025306,0.4732,3049.7,3049.6,0.112]
[1763599025511,0.4732,3049.7,3049.3,0.112]
[1763599025512,0.9672,3049.7,3049.3,0.112]
[1763599025751,0.4732,3049.4,3049.3,0.112]
[1763599026114,0.9672,3049.4,3049.3,0.112]
[1763599027559,0.9672,3049.4,3049.3,3.39144118]
[1763599028010,0.9672,3049.4,3049.3,0.112]
[1763599028211,0.9672,3049.4,3049.3,3.39144118]
[1763599028411,0.9672,3049.4,3049.0,0.001]
[1763599028614,0.4696,3049.1,3049.0,0.001]
[1763599028812,0.959,3049.1,3049.0,0.001]
[1763599031341,4.23865629,3049.1,3048.7,0.001]
[1763599031647,0.6511,3048.8,3048.5,0.001]
[1763599031953,0.4696,3048.6,3048.5,0.001]
[1763599032447,0.959,3048.6,3048.5,0.001]
[1763599033456,0.1815,3048.8,3048.5,0.001]
[1763599033652,0.1815,3049.0,3048.5,6.56160356]
[1763599034034,0.6709,3049.0,3048.5,6.56160356]
[1763599034234,0.1815,3048.9,3048.5,6.56160356]
[1763599035031,0.4894,3049.3,3048.6,0.03280194]
[1763599035248,0.4894,3049.5,3048.5,9.84190534]
[1763599035422,0.4894,3049.4,3048.6,0.90699264]
[1763599035618,0.4894,3049.4,3048.8,0.90699264]
[1763599035954,0.4894,3049.4,3048.9,0.112]
[1763599036354,0.4696,3049.0,3048.9,0.112]
[1763599036723,0.959,3049.0,3048.9,0.112]
[1763599036925,0.959,3049.0,3048.8,0.90699264]
[1763599037125,0.6511,3048.9,3048.8,0.90699264]
[1763599037960,0.6511,3048.9,3048.8,4.18697164]
[1763599038456,0.4894,3049.5,3048.8,10.74692964]
[1763599040124,0.002,3049.7,3049.4,0.0458]
[1763599040363,0.002,3049.7,3049.4,0.1578]
[1763599040567,0.002,3049.7,3049.4,0.112]
[1763599040927,0.002,3049.7,3049.4,0.212]
[1763599041218,0.002,3049.7,3049.4,0.112]
[1763599041455,0.4914,3049.7,3049.4,0.112]
[1763599042058,0.4914,3049.7,3049.5,6.5584522]
[1763599042245,0.4696,3049.5,3049.0,6.671521]
[1763599042444,0.4696,3049.3,3049.0,6.671521]
[1763599042643,0.959,3049.3,3049.0,6.671521]
[1763599042846,0.002,3049.7,3049.0,9.95128485]
[1763599044025,0.4914,3049.7,3049.0,9.95128485]
[1763599044222,0.4914,3049.7,3049.1,0.405504]
[1763599044223,0.002,3049.7,3049.1,0.405504]
[1763599044448,0.002,3049.7,3049.1,0.505504]
[1763599045568,0.4914,3049.7,3049.0,9.95128485]
[1763599045766,0.4914,3049.7,3049.0,6.671521]
[1763599046137,0.4914,3049.7,3049.0,9.95128485]
[1763599046339,0.4914,3049.7,3049.0,10.05128485]
[1763599046529,0.002,3049.7,3049.1,0.405504]
[1763599046726,0.002,3049.7,3049.1,0.43830056]
[1763599046976,0.002,3050.2,3049.6,0.451304]
[1763599047177,0.002,3050.2,3050.0,0.551304]
[1763599047630,0.002,3050.2,3050.0,0.597104]
[1763599048080,0.002,3050.2,3050.0,4.78278516]
[1763599048257,0.002,3050.6,3050.0,4.78278516]
[1763599048258,0.002,3050.6,3050.5,0.505504]
[1763599048485,0.002,3050.6,3050.5,9.47862634]
[1763599048680,0.002,3050.6,3050.5,9.52442634]
[1763599050198,0.002,3050.6,3050.5,12.80257746]
[1763599051261,0.002,3050.6,3050.5,4.89424776]
[1763599051457,0.002,3050.6,3050.5,4.34294376]
[1763599051885,0.002,3050.6,3050.5,4.44294376]
[1763599052111,0.002,3050.6,3050.5,4.48874376]
[1763599052403,0.002,3050.6,3050.5,5.67094912]
[1763599053875,0.002,3050.6,3050.5,5.70373063]
[1763599054697,0.002,3050.6,3050.5,5.62514912]
[1763599056367,0.491,3050.6,3050.5,4.18514376]
[1763599056563,0.9693,3050.6,3050.5,4.29714376]
[1763599056764,0.9693,3050.6,3050.5,0.112]
[1763599057962,0.9693,3050.6,3050.0,0.112]
[1763599058213,0.4885,3050.5,3050.1,0.405504]
[1763599058379,0.4885,3050.5,3050.2,3.27847354]
[1763599058884,0.002,3050.6,3050.2,3.27847354]
[1763599059199,0.4774,3050.3,3050.2,3.27847354]
[1763599059566,0.9659,3050.3,3050.2,3.27847354]
[1763599059958,0.4905,3050.6,3050.2,6.55694708]
[1763599060408,0.4905,3050.6,3050.1,7.4641547]
[1763599062162,0.4905,3050.6,3050.1,10.74273573]
[1763599062569,0.002,3050.6,3050.4,0.405504]
[1763599062801,0.002,3050.6,3050.5,0.563304]
[1763599063474,0.002,3050.6,3050.5,0.663304]
[1763599064488,0.002,3050.6,3050.5,3.94145512]
[1763599064816,0.002,3050.6,3050.5,3.39015112]
[1763599064817,0.9679,3050.6,3050.5,3.39015112]
[1763599065491,0.002,3050.6,3050.5,3.39015112]
[1763599067309,0.9679,3050.6,3050.5,3.39015112]
[1763599067805,0.9679,3050.6,3050.5,3.27815112]
[1763599067996,0.9679,3050.6,3050.5,3.39015112]
[1763599068196,0.9679,3050.6,3050.0,3.27861612]
[1763599068491,0.4885,3050.5,3050.1,0.112]
[1763599068808,0.4885,3050.5,3050.1,3.39056918]
[1763599068984,0.4774,3050.2,3050.1,4.29756182]
[1763599069181,0.4774,3050.2,3050.1,0.112]
[1763599069503,0.9659,3050.2,3050.1,2.57691103]
[1763599069707,0.9659,3050.2,3050.1,2.68891103]
[1763599070066,0.9659,3050.2,3050.1,0.112]
[1763599070270,0.9659,3050.2,3049.8,0.001]
[1763599070467,0.6728,3049.9,3049.8,0.001]
[1763599070924,1.1613,3049.9,3049.8,0.001]
[1763599076513,0.002,3050.6,3049.8,0.001]
[1763599076699,0.4774,3049.9,3049.8,0.001]
[1763599077098,0.9659,3049.9,3049.8,0.001]
[1763599077830,0.4885,3050.3,3049.8,0.001]
[1763599078338,0.4774,3049.9,3049.8,0.001]
[1763599078630,0.4885,3050.3,3049.8,0.001]
[1763599078832,0.4774,3049.9,3049.8,0.113]
[1763599079034,0.4774,3049.9,3049.8,0.001]
[1763599079342,0.9659,3049.9,3049.8,0.001]
[1763599080234,0.4774,3049.9,3049.8,0.001]
[1763599080436,0.6839,3050.5,3049.8,0.001]
[1763599080624,0.4885,3050.4,3049.9,0.112]
[1763599080835,0.0328765,3050.3,3049.8,0.001]
[1763599081028,0.4774,3049.9,3049.8,0.001]
[1763599081412,0.9659,3049.9,3049.8,0.001]
[1763599082145,0.4885,3050.2,3049.8,3.27990353]
[1763599082441,0.4885,3050.2,3049.9,1.01899264]
[1763599082939,0.4774,3050.0,3049.9,4.29778866]
[1763599083638,0.9659,3050.0,3049.8,0.001]
[1763599083819,0.4774,3049.9,3049.8,3.27986413]
[1763599084646,0.9659,3049.9,3049.8,3.27986413]
[1763599085344,0.4885,3050.3,3049.8,6.55876766]
[1763599085743,0.4885,3050.3,3049.8,3.27986413]
[1763599085744,0.4774,3049.9,3049.8,3.27986413]
[1763599086367,0.9659,3049.9,3049.8,3.27986413]
[1763599086580,0.4885,3050.2,3049.8,6.55876766]
[1763599087078,0.6839,3050.5,3049.8,9.83767119]
[1763599087243,0.002,3050.6,3050.3,0.405504]
[1763599087564,0.002,3050.6,3050.4,0.112]
[1763599088466,0.002,3050.6,3050.5,0.451304]
[1763599089168,0.002,3050.6,3050.5,3.72945512]
[1763599089353,0.002,3050.6,3050.5,4.32197756]
[1763599089876,0.002,3050.6,3050.5,4.46777756]
[1763599090234,0.002,3050.6,3050.5,4.42197756]
[1763599090636,0.002,3050.6,3050.5,4.43397756]
[1763599090947,0.002,3050.6,3050.5,5.4867702]
[1763599091265,0.002,3050.6,3050.5,5.4409702]
[1763599091467,0.002,3050.6,3050.5,5.4867702]
[1763599091659,0.002,3050.6,3050.5,13.04792199]
[1763599092242,0.002,3050.6,3050.5,12.90212199]
[1763599092441,0.002,3050.6,3050.5,5.4409702]
[1763599092645,0.002,3050.6,3050.5,4.59064776]
[1763599092950,0.002,3050.6,3050.5,4.70264776]
[1763599093770,0.002,3050.6,3050.5,4.59064776]
[1763599093957,0.002,3050.6,3050.5,4.70264776]
[1763599094156,0.002,3050.6,3050.5,4.74844776]
[1763599094570,0.002,3050.6,3050.5,4.18514376]
[1763599094743,0.002,3050.6,3050.5,4.29714376]
[1763599095368,0.002,3050.6,3050.5,3.39015112]
[1763599095567,0.002,3050.6,3050.5,3.79565512]
[1763599095881,0.002,3050.6,3050.5,3.39015112]
[1763599100551,0.9427,3050.6,3050.1,0.405504]
[1763599100756,0.4601,3050.2,3049.9,6.55759204]
[1763599100988,0.4806,3050.4,3050.0,0.112]
[1763599101465,0.4601,3050.1,3050.0,0.112]
[1763599101892,0.9407,3050.1,3050.0,0.112]
[1763599103893,0.9407,3050.1,3050.0,3.39068852]
[1763599106500,0.9407,3050.1,3049.8,0.001]
[1763599106700,0.002,3050.6,3049.8,0.001]
[1763599106701,0.6518,3049.9,3049.8,0.001]
[1763599107078,1.1124,3049.9,3049.8,3.27990353]
[1763599107884,1.1124,3049.9,3049.8,0.001]
[1763599110876,1.1124,3049.9,3049.5,0.001]
[1763599110877,7.66999204,3049.9,3049.5,0.001]
[1763599111079,7.66999204,3049.9,3048.6,0.001]
[1763599111080,0.4635,3049.5,3048.7,0.112]
[1763599111391,0.4635,3049.2,3048.6,0.001]